bitfinex-derivatives/quotes_SOLF0:USTF0_20241015
["timestamp","ask_amount","ask_price","bid_price","bid_amount"]
[1729019823947,3.2259,155.02,154.99,3.2264]
[1729019824150,23.7771,155.05,154.99,3.2264]
[1729019824445,8.2771,155.05,154.97,15.5]
[1729019824951,11.5024,155.05,155.01,3.2259]
[1729019825156,8.2771,155.05,154.97,15.5]
[1729019825345,1.321,155.05,154.98,5.66]
[1729019826446,1.321,155.05,155.01,3.2258]
[1729019826646,1.321,155.05,154.98,5.66]
[1729019829047,1.321,155.05,155.02,3.2257]
[1729019829252,3.2254,155.04,154.98,5.66]
[1729019829451,3.2254,155.04,155.01,3.226]
[1729019830255,1.321,155.05,154.95,15.5]
[1729019830448,15.5,155.04,154.96,5.66]
[1729019830649,5.66,155.03,154.94,1.3174]
[1729019830854,18.65591136,155.02,154.94,1.3174]
[1729019831052,18.65591136,155.02,154.94,6.9774]
[1729019831453,18.65591136,155.02,154.94,5.66]
[1729019831659,18.65591136,155.02,154.91,15.5]
[1729019831660,21.48341136,155.02,154.91,21.16]
[1729019831855,15.5,155.0,154.91,5.66]
[1729019832055,3.2268,154.98,154.94,3.2273]
[1729019835062,3.2261,155.01,154.98,3.2266]
[1729019835267,2.8275,155.02,154.94,15.5]
[1729019835761,1.4057,155.02,154.94,15.5]
[1729019835966,1.4057,155.02,154.95,5.66]
[1729019836262,4.6316,155.02,154.98,3.2265]
[1729019837868,20.15642839,155.02,154.96,3.2271]
[1729019838067,20.15642839,155.02,154.92,21.02]
[1729019838971,15.5,155.0,154.9,15.5]
[1729019839166,5.52,154.99,154.9,21.02]
[1729019839576,1.3486,154.98,154.9,21.02]
[1729019840275,4.5754,154.98,154.94,3.2274]
[1729019840676,3.227,154.97,154.93,3.2277]
[1729019843770,1.3486,154.98,154.9,5.52]
[1729019844077,3.2272,154.96,154.92,3.2278]
[1729019847274,3.2276,154.94,154.91,3.228]
[1729019847471,3.2276,154.94,154.84,3.30860711]
[1729019847472,24.8,154.95,154.84,3.30860711]
[1729019847781,3.2281,154.92,154.88,3.2286]
[1729019848077,5.54,154.97,154.88,3.27168526]
[1729019848273,5.54,154.97,154.88,6.8666]
[1729019848865,8.7669,154.97,154.93,3.2276]
[1729019849065,5.54,154.97,154.88,6.8666]
[1729019849673,3.2271,154.96,154.92,3.2278]
[1729019850581,3.2279,154.92,154.89,3.2285]
[1729019850777,24.8,154.96,154.87,5.54]
[1729019850975,24.8,154.93,154.83,2.744]
[1729019851183,3.2288,154.88,154.84,3.2295]
[1729019851972,3.2288,154.88,154.81,5.54]
[1729019851973,24.8,154.9,154.79,26.1916]
[1729019852176,3.2291,154.87,154.82,3.2299]
[1729019852576,24.8,154.9,154.82,3.2299]
[1729019852777,24.8,154.88,154.81,3.2302]
[1729019852974,30.34,154.88,154.81,3.2302]
[1729019853480,3.2293,154.86,154.81,3.2302]
[1729019853673,30.34,154.88,154.8,3.2303]
[1729019854071,5.54,154.88,154.79,5.54]
[1729019854473,5.54,154.88,154.77,26.1515]
[1729019854675,5.54,154.88,154.78,5.54]
[1729019855073,3.2292,154.86,154.81,3.2302]
[1729019858273,3.2292,154.86,154.78,5.54]
[1729019858474,3.2292,154.86,154.82,3.23]
[1729019863287,3.2294,154.85,154.81,3.23]
[1729019863790,15.51,154.87,154.78,5.54]
[1729019864090,3.2292,154.86,154.82,3.2299]
[1729019864283,5.54,154.88,154.79,15.51]
[1729019864491,8.7689,154.88,154.84,3.2295]
[1729019864887,3.2289,154.88,154.79,15.51]
[1729019865187,2.7414,154.92,154.78,5.54]
[1729019865188,24.2783,154.91,154.81,15.51]
[1729019865387,21.05,154.91,154.82,5.54]
[1729019865595,21.05,154.91,154.87,3.2288]
[1729019865793,24.2783,154.91,154.87,3.2288]
[1729019866486,3.2283,154.9,154.87,3.2288]
[1729019867189,24.2783,154.91,154.87,3.2288]
[1729019867590,24.2783,154.91,154.82,5.54]
[1729019867793,24.2783,154.91,154.88,3.2287]
[1729019868797,15.51,154.89,154.77,1.3515]
[1729019868999,5.54,154.91,154.77,6.8915]
[1729019869000,15.51,154.85,154.77,6.8915]
[1729019869195,15.51,154.85,154.76,5.54]
[1729019869391,3.2298,154.83,154.79,3.2305]
[1729019871899,4.5938,154.84,154.79,3.2305]
[1729019872099,4.5938,154.84,154.76,5.54]
[1729019872100,1.3641,154.84,154.76,5.54]
[1729019872400,1.3641,154.84,154.8,3.2303]
[1729019872797,4.5938,154.84,154.8,3.2303]
[1729019873303,1.3641,154.84,154.76,5.54]
[1729019873994,1.3641,154.84,154.81,3.2301]
[1729019874393,4.5937,154.84,154.81,3.2301]
[1729019877894,3.2295,154.85,154.82,3.23]
[1729019879196,3.2295,154.85,154.83,3.2297]
[1729019880407,3.2301,154.82,154.8,3.2304]
[1729019881108,3.2299,154.83,154.8,3.2304]
[1729019881403,16.8202,154.84,154.73,25.23198883]
[1729019881594,3.2299,154.83,154.79,3.2305]
[1729019881789,1.3102,154.84,154.76,15.51]
[1729019882208,3.2298,154.83,154.8,3.2303]
[1729019882403,15.51,154.82,154.75,1.342]
[1729019882706,15.51,154.82,154.74,5.54]
[1729019883402,3.2307,154.79,154.76,3.2312]
[1729019883707,21.05,154.82,154.76,3.2312]
[1729019883898,21.05,154.82,154.74,5.54]
[1729019884105,15.51,154.8,154.76,3.2312]
[1729019884302,15.51,154.8,154.72,5.54]
[1729019884900,3.2308,154.78,154.75,3.2313]
[1729019885209,21.05,154.82,154.72,5.54]
[1729019885498,21.05,154.82,154.76,3.2311]
[1729019885499,3.2305,154.8,154.76,3.2311]
[1729019885707,21.05,154.82,154.73,15.51]
[1729019885903,21.05,154.82,154.73,16.9226]
[1729019886098,24.2802,154.82,154.78,3.2307]
[1729019886299,18.1228,154.84,154.76,5.54]
[1729019886500,2.6128,154.84,154.76,5.54]
[1729019886707,5.8425,154.84,154.8,3.2303]
[1729019886907,4.5399,154.84,154.76,5.54]
[1729019887406,4.5399,154.84,154.8,3.2303]
[1729019887603,1.3102,154.84,154.73,6.9526]
[1729019887911,15.51,154.81,154.77,3.231]
[1729019889405,3.2304,154.8,154.77,3.231]
[1729019889599,3.2304,154.8,154.76,3.2312]
[1729019890499,3.2311,154.77,154.74,3.2316]
[1729019890913,15.51,154.79,154.74,3.2316]
[1729019891105,3.2311,154.77,154.73,3.2318]
[1729019891404,5.54,154.82,154.7,5.54]
[1729019891405,15.51,154.76,154.7,5.54]
[1729019891718,3.2316,154.75,154.71,3.2321]
[1729019891895,15.51,154.76,154.69,1.2975]
[1729019892896,15.51,154.76,154.71,3.2323]
[1729019893099,15.51,154.74,154.66,5.54]
[1729019893708,3.232,154.73,154.69,3.2327]
[1729019895504,18.7421,154.72,154.68,3.2328]
[1729019895801,20.174,154.72,154.68,3.2328]
[1729019896907,16.9419,154.72,154.65,5.54]
[1729019897815,20.1741,154.72,154.68,3.2328]
[1729019898209,3.2324,154.71,154.67,3.2331]
[1729019898910,16.9419,154.72,154.61,15.51]
[1729019899217,18.7426,154.7,154.66,3.2333]
[1729019900107,18.7426,154.7,154.62,5.54]
[1729019900108,15.51,154.68,154.55,5.54]
[1729019900309,18.7437,154.65,154.56,4.58869401]
[1729019901211,15.51,154.65,154.56,4.58869401]
[1729019901408,15.51,154.62,154.59,3.2347]
[1729019902505,6.9439,154.64,154.56,1.3433]
[1729019902506,16.9139,154.64,154.56,1.3433]
[1729019902712,22.4539,154.64,154.6,3.2344]
[1729019902906,16.9139,154.64,154.6,3.2344]
[1729019903213,20.1477,154.64,154.6,3.2344]
[1729019903709,1.4039,154.64,154.56,1.3433]
[1729019904308,1.4039,154.64,154.6,3.2344]
[1729019904504,16.9139,154.64,154.6,3.2344]
[1729019905015,20.1478,154.64,154.6,3.2344]
[1729019905211,1.4039,154.64,154.62,3.234]
[1729019905720,5.54,154.67,154.58,5.54]
[1729019905909,5.54,154.67,154.59,15.51]
[1729019906819,3.2331,154.67,154.63,3.2338]
[1729019907120,5.54,154.69,154.58,5.54]
[1729019907308,5.54,154.69,154.59,15.51]
[1729019907815,15.51,154.68,154.59,15.51]
[1729019909320,15.51,154.68,154.58,21.05]
[1729019909517,5.54,154.69,154.58,5.54]
[1729019909716,15.51,154.64,154.58,5.54]
[1729019910017,15.51,154.64,154.56,1.3433]
[1729019910410,20.1181,154.64,154.59,3.2346]
[1729019910611,1.3743,154.64,154.56,1.3433]
[1729019910814,1.3743,154.64,154.57,15.51]
[1729019911120,1.3743,154.64,154.56,1.3433]
[1729019911618,1.3743,154.64,154.56,6.8833]
[1729019911813,4.6081,154.64,154.56,6.8833]
[1729019912021,1.3743,154.64,154.56,6.8833]
[1729019912217,1.3743,154.64,154.62,3.234]
[1729019913522,5.54,154.65,154.63,3.234]
[1729019913732,24.283,154.68,154.59,15.51]
[1729019914533,24.283,154.68,154.63,3.2338]
[1729019916532,21.05,154.68,154.63,3.2338]
[1729019916833,3.2333,154.67,154.63,3.2338]
[1729019917629,2.7382,154.7,154.6,5.54]
[1729019917630,8.7728,154.69,154.6,5.54]
[1729019917824,2.7382,154.7,154.61,18.7035151]
[1729019918230,2.7382,154.7,154.67,3.2331]
[1729019918431,15.51,154.68,154.57,5.6048]
[1729019918638,15.51,154.68,154.58,15.51]
[1729019918839,3.2333,154.67,154.63,3.2339]
[1729019919141,3.2333,154.67,154.58,15.51]
[1729019919332,18.743,154.68,154.64,3.2337]
[1729019919532,23.7882,154.7,154.62,15.51]
[1729019920034,3.2328,154.69,154.62,15.51]
[1729019920432,23.7882,154.7,154.64,3.2337]
[1729019920735,16.9432,154.7,154.62,15.51]
[1729019921129,1.4332,154.7,154.62,15.51]
[1729019921334,1.4332,154.7,154.62,16.8499]
[1729019922327,1.4332,154.7,154.62,18.1841]
[1729019922530,15.51,154.74,154.64,15.51]
[1729019922737,21.05,154.74,154.65,5.54]
[1729019923328,21.05,154.74,154.67,3.233]
[1729019923329,24.2818,154.74,154.67,3.233]
[1729019923535,4.0632,154.75,154.66,15.51]
[1729019925136,7.2948,154.75,154.66,15.51]
[1729019925532,3.2317,154.74,154.7,3.2324]
[1729019930648,3.2324,154.71,154.67,3.2329]
[1729019930942,3.2324,154.71,154.64,5.54]
[1729019931334,3.2324,154.71,154.68,3.2329]
[1729019932948,5.54,154.73,154.64,21.05]
[1729019933152,4.0632,154.75,154.7,3.2323]
[1729019933650,4.0632,154.75,154.71,3.2322]
[1729019933651,3.2317,154.74,154.71,3.2322]
[1729019934247,7.2947,154.75,154.66,15.51]
[1729019934449,4.0632,154.75,154.66,15.51]
[1729019934648,2.755,154.75,154.68,15.51]
[1729019934848,2.755,154.75,154.73,3.2317]
[1729019935041,2.755,154.75,154.68,21.05]
[1729019935453,5.9865,154.75,154.68,5.54]
[1729019935638,5.9865,154.75,154.66,15.51]
[1729019935845,3.2324,154.71,154.67,3.2329]
[1729019936650,3.2322,154.72,154.68,3.2328]
[1729019937044,15.51,154.73,154.65,5.54]
[1729019937247,18.742,154.73,154.65,5.54]
[1729019937848,8.7718,154.74,154.65,5.54]
[1729019938049,3.2318,154.74,154.65,5.54]
[1729019938360,21.4965,154.75,154.71,3.2322]
[1729019938554,48.388,154.86,154.69,5.54]
[1729019938555,16.8619,154.79,154.69,5.54]
[1729019938851,1.3519,154.79,154.72,15.51]
[1729019939157,1.3519,154.79,154.75,3.2313]
[1729019939353,1.3519,154.79,154.72,15.51]
[1729019940063,1.3519,154.79,154.75,3.2314]
[1729019940355,1.3519,154.79,154.7,22.4479]
[1729019940857,1.3519,154.79,154.65,0.0649]
[1729019940858,15.51,154.77,154.65,0.0649]
[1729019941051,15.51,154.76,154.66,21.05]
[1729019941252,15.51,154.76,154.69,3.2325]
[1729019941253,3.2317,154.74,154.69,3.2325]
[1729019942758,3.2315,154.75,154.71,3.2322]
[1729019943155,3.2315,154.75,154.66,21.05]
[1729019943356,15.51,154.76,154.66,21.05]
[1729019943556,3.2317,154.74,154.7,3.2324]
[1729019943858,3.2317,154.74,154.66,21.05]
[1729019944058,3.2319,154.73,154.68,3.2327]
[1729019944252,15.51,154.73,154.68,3.2327]
[1729019944455,1.399,154.72,154.68,3.2327]
[1729019944659,4.6312,154.72,154.68,3.2327]
[1729019945863,4.6312,154.72,154.68,3.2329]
[1729019945864,4.6311,154.72,154.68,3.2329]
[1729019946057,15.51,154.75,154.67,5.54]
[1729019946562,1.3094,154.76,154.68,15.51]
[1729019946855,1.3094,154.76,154.7,15.51]
[1729019947063,1.3094,154.76,154.71,5.54]
[1729019947861,1.3094,154.76,154.73,3.2318]
[1729019948762,3.2323,154.72,154.67,3.233]
[1729019949063,15.51,154.72,154.67,3.233]
[1729019949262,15.51,154.72,154.66,5.54]
[1729019949465,3.2325,154.71,154.67,3.2331]
[1729019952462,1.3094,154.76,154.67,15.51]
[1729019952667,1.3094,154.76,154.66,5.54]
[1729019952859,1.3094,154.76,154.67,15.51]
[1729019953064,3.2318,154.74,154.69,3.2326]
[1729019953364,1.3094,154.76,154.67,15.51]
[1729019954661,3.232,154.73,154.69,3.2327]
[1729019956364,3.2317,154.74,154.7,3.2324]
[1729019956969,3.2319,154.73,154.69,3.2327]
[1729019957472,3.2321,154.73,154.68,3.2329]
[1729019957671,15.51,154.75,154.66,5.54]
[1729019958174,3.2325,154.7,154.66,8.7732]
[1729019958871,3.2325,154.7,154.67,3.2331]
[1729019960675,3.2329,154.69,154.65,3.2334]
[1729019961276,3.2324,154.71,154.66,3.2332]
[1729019961776,1.337,154.72,154.64,5.54]
[1729019961976,1.337,154.72,154.68,3.2329]
[1729019962170,1.337,154.72,154.65,15.51]
[1729019962372,1.3094,154.76,154.67,15.51]
[1729019962578,1.3094,154.76,154.71,3.2323]
[1729019962976,3.2316,154.75,154.71,3.2323]
[1729019963673,1.3094,154.76,154.69,15.51]
[1729019963874,1.3094,154.76,154.71,15.51]
[1729019965187,1.3094,154.76,154.73,3.2317]
[1729019966073,1.3094,154.76,154.71,15.51]
[1729019966279,1.3094,154.76,154.69,15.51]
[1729019966782,3.2317,154.74,154.69,15.51]
[1729019967385,1.3094,154.76,154.69,15.51]
[1729019967582,1.3094,154.76,154.71,3.2323]
[1729019967987,1.3094,154.76,154.68,5.54]
[1729019968187,1.3094,154.76,154.7,3.2324]
[1729019968583,1.3094,154.76,154.68,5.54]
[1729019968584,3.2318,154.74,154.68,5.54]
[1729019969486,3.2318,154.74,154.71,3.2322]
[1729019970386,1.3094,154.76,154.74,3.2317]
[1729019970692,1.3094,154.76,154.7,24.84]
[1729019971093,1.3094,154.76,154.73,3.2317]
[1729019971294,1.3094,154.76,154.7,24.84]
[1729019971594,1.3094,154.76,154.7,3.2323]
[1729019971795,1.3094,154.76,154.68,1.3193]
[1729019971982,1.3094,154.76,154.65,6.8828]
[1729019972188,1.3094,154.76,154.67,24.84]
[1729019972697,1.3094,154.76,154.73,3.2319]
[1729019972990,4.568,154.78,154.7,30.38]
[1729019973193,1.337,154.78,154.73,3.2318]
[1729019973494,1.337,154.78,154.71,5.54]
[1729019973691,1.337,154.78,154.74,3.2317]
[1729019974193,4.568,154.78,154.74,3.2317]
[1729019975984,1.337,154.78,154.71,5.54]
[1729019976185,1.337,154.78,154.68,1.4105]
[1729019976386,1.337,154.78,154.69,5.54]
[1729019976591,3.2318,154.74,154.71,3.2323]
[1729019977397,3.2318,154.74,154.69,5.54]
[1729019977398,3.27559195,154.77,154.69,5.54]
[1729019977595,3.2318,154.74,154.7,3.2325]
[1729019978397,3.2316,154.75,154.72,3.2321]
[1729019979099,1.337,154.78,154.69,30.38]
[1729019980100,1.337,154.78,154.69,33.59804602]
[1729019980705,3.2312,154.76,154.73,3.2317]
[1729019984802,3.2309,154.78,154.74,3.2315]
[1729019985194,3.2309,154.78,154.69,33.59804602]
[1729019986402,3.2309,154.78,154.75,3.2314]
[1729019986803,5.54,154.79,154.69,33.59804602]
[1729019987096,1.3664,154.81,154.71,24.84]
[1729019987512,3.2306,154.79,154.76,3.2311]
[1729019988301,3.2305,154.8,154.77,3.231]
[1729019991003,3.2305,154.8,154.74,21.06]
[1729019991200,4.5966,154.81,154.79,3.2305]
[1729019992099,1.3496,154.83,154.8,3.2303]
[1729019993007,3.2301,154.82,154.8,3.2303]
[1729019993206,1.3496,154.83,154.78,3.2307]
[1729019993400,1.3496,154.83,154.76,15.52]
[1729019993704,3.2304,154.81,154.78,3.2307]
[1729019996301,4.5795,154.83,154.78,3.2308]
[1729019996491,11.5431639,154.87,154.78,15.52]
[1729019996700,1.00380143,154.86,154.78,15.52]
[1729019996999,1.00380143,154.86,154.82,3.2299]
[1729019997406,3.2297,154.84,154.81,3.23]
[1729019997801,3.2297,154.84,154.78,21.06]
[1729019998010,3.2297,154.84,154.81,3.2301]
[1729019999398,3.27852913,154.89,154.8,15.52]
[1729019999611,1.00376736,154.88,154.8,15.52]
[1729019999910,3.2294,154.85,154.82,3.2299]
[1729020000911,3.2297,154.84,154.81,3.2301]
[1729020001400,1.4052,154.88,154.79,5.52]
[1729020001605,3.2297,154.84,154.81,3.2301]
[1729020002005,1.4052,154.88,154.8,15.52]
[1729020002313,3.2291,154.87,154.83,3.2296]
[1729020002514,3.2291,154.87,154.8,15.52]
[1729020002817,1.4052,154.88,154.8,15.52]
[1729020003011,3.2292,154.86,154.82,3.2299]
[1729020003206,1.4052,154.88,154.8,15.52]
[1729020003410,3.2294,154.85,154.79,3.2305]
[1729020003609,1.4052,154.88,154.78,21.04]
[1729020004117,3.23,154.83,154.78,21.04]
[1729020004819,1.4052,154.88,154.8,15.52]
[1729020005818,3.2297,154.84,154.81,3.2302]
[1729020006315,3.23,154.83,154.8,15.52]
[1729020007015,3.2305,154.8,154.76,21.04]
[1729020007618,21.04,154.85,154.76,15.52]
[1729020007812,15.52,154.83,154.74,15.52]
[1729020008016,15.52,154.8,154.7,1.3364]
[1729020008321,3.2314,154.76,154.71,5.52]
[1729020008917,1.3532,154.79,154.71,8.7523]
[1729020008918,3.2316,154.75,154.71,8.7523]
[1729020009112,1.3532,154.79,154.71,5.52]
[1729020009417,1.3532,154.79,154.71,21.04]
[1729020009717,1.3532,154.79,154.73,15.52]
[1729020009918,3.2305,154.8,154.75,3.2313]
[1729020010315,5.52,154.81,154.75,3.2313]
[1729020010618,5.52,154.81,154.76,18.7512]
[1729020010919,3.2304,154.8,154.76,15.52]
[1729020011217,1.3699,154.82,154.76,15.52]
[1729020011617,3.2304,154.8,154.76,15.52]
[1729020011815,3.2304,154.8,154.76,18.7511]
[1729020012314,3.2303,154.81,154.77,3.231]
[1729020013722,1.359,154.83,154.78,18.7507]
[1729020013723,4.589,154.83,154.78,18.7507]
[1729020014221,1.359,154.83,154.78,15.52]
[1729020014618,1.3112,154.86,154.8,15.52]
[1729020014818,1.3112,154.86,154.82,15.52]
[1729020014819,5.52,154.86,154.82,15.52]
[1729020015325,5.52,154.9,154.84,15.52]
[1729020015718,3.2281,154.91,154.87,3.2289]
[1729020016219,5.52,154.92,154.87,3.2289]
[1729020016419,3.2283,154.9,154.87,3.2289]
[1729020016625,5.52,154.92,154.86,15.52]
[1729020016626,5.52,154.92,154.88,3.2287]
[1729020016822,2.6807,154.93,154.86,15.52]
[1729020017012,1.3032,155.0,154.92,15.52]
[1729020017215,1.00366828,154.99,154.94,15.52]
[1729020017519,1.3695,155.01,154.94,15.52]
[1729020017723,3.2264,155.0,154.96,3.2269]
[1729020018322,1.3695,155.01,154.96,3.2269]
[1729020018529,1.3695,155.01,154.94,5.52]
[1729020018820,1.3695,155.01,154.92,1.3266]
[1729020019120,1.3695,155.01,154.92,16.8466]
[1729020019317,1.3695,155.01,154.93,3.2275]
[1729020019714,3.2265,154.99,154.96,3.2271]
[1729020019924,1.3695,155.01,154.96,15.52]
[1729020020227,1.3695,155.01,154.98,3.2265]
[1729020020427,1.3695,155.01,154.96,15.52]
[1729020020726,6.9453,155.03,154.96,15.52]
[1729020020925,3.2258,155.02,154.98,3.2265]
[1729020021425,3.2259,155.02,154.98,3.2265]
[1729020022327,3.2261,155.01,154.98,3.2265]
[1729020022722,18.3462,155.09,154.99,15.52]
[1729020023028,3.2262,155.01,154.96,5.52]
[1729020024520,5.52,155.04,154.95,21.04]
[1729020025030,5.52,155.04,154.95,24.2671]
[1729020025229,5.52,155.04,154.95,21.04]
[1729020025630,3.2264,155.0,154.96,3.2269]
[1729020026830,3.2261,155.01,154.97,3.2268]
[1729020027431,3.226,155.02,154.98,3.2265]
[1729020027831,5.52,155.04,154.98,3.2265]
[1729020028233,5.52,155.04,154.97,3.2267]
[1729020028435,15.52,155.03,154.95,5.52]
[1729020028824,1.3716,155.02,154.96,3.2269]
[1729020029635,3.2264,155.0,154.96,3.2269]
[1729020030230,3.2265,154.99,154.96,3.2269]
[1729020031035,3.2265,154.99,154.93,15.52]
[1729020031236,3.2267,154.98,154.95,3.2272]
[1729020031743,3.2271,154.96,154.92,8.7478]
[1729020032637,18.2669,155.01,154.91,3.2281]
[1729020032638,3.2274,154.95,154.91,3.2281]
[1729020032833,3.2274,154.95,154.9,5.52]
[1729020033034,15.52,154.98,154.9,5.52]
[1729020033238,3.2272,154.96,154.91,3.228]
[1729020033645,21.04,155.0,154.91,3.228]
[1729020034546,3.2272,154.96,154.92,3.2279]
[1729020034740,21.04,155.0,154.92,3.2279]
[1729020035241,3.2272,154.96,154.92,3.2279]
[1729020037449,3.2269,154.98,154.93,15.52]
[1729020037649,2.7469,155.01,154.93,15.52]
[1729020037842,2.7469,155.01,154.95,3.2272]
[1729020037843,3.2264,155.0,154.95,3.2272]
[1729020038043,1.4226,155.01,154.95,3.2272]
[1729020038546,3.2263,155.0,154.96,3.2269]
[1729020038846,6.8916,155.02,154.96,3.2269]
[1729020039937,3.2264,155.0,154.96,3.2269]
[1729020040550,6.8916,155.02,154.96,3.2269]
[1729020040750,3.2265,154.99,154.96,3.2269]
[1729020046153,3.2264,155.0,154.96,3.2269]
[1729020049959,3.2269,154.97,154.94,8.7473]
[1729020050258,22.4116,155.02,154.94,3.2273]
[1729020050554,22.4116,155.02,154.93,15.52]
[1729020050745,6.8916,155.02,154.96,3.2269]
[1729020050950,3.2264,155.0,154.96,3.2269]
[1729020053054,3.2265,154.99,154.96,3.2269]
[1729020054357,3.227,154.97,154.94,3.2274]
[1729020054659,6.8916,155.02,154.93,16.9127]
[1729020055253,6.8916,155.02,154.95,15.52]
[1729020055856,3.2263,155.0,154.96,3.2269]
[1729020056456,3.2265,154.99,154.96,3.2269]
[1729020056656,6.8916,155.02,154.94,3.2274]
[1729020057245,15.52,155.0,154.92,8.7478]
[1729020057457,3.2276,154.94,154.89,16.8902]
[1729020057644,3.2276,154.94,154.9,5.52]
[1729020057843,3.2276,154.94,154.92,3.2279]
[1729020058244,16.8251,154.98,154.92,3.2279]
[1729020058245,3.2274,154.95,154.92,3.2279]
[1729020061253,6.8251,154.98,154.91,15.52]
[1729020061459,3.2269,154.97,154.94,3.2274]
[1729020063150,3.2272,154.96,154.93,18.7476]
[1729020063852,1.3397,154.99,154.9,3.2283]
[1729020063853,15.52,154.98,154.9,3.2283]
[1729020064058,3.18817785,154.97,154.87,15.52]
[1729020064263,3.228,154.92,154.89,3.2284]
[1729020064450,3.228,154.92,154.87,15.52]
[1729020064653,6.8936,154.96,154.87,15.52]
[1729020065257,6.8936,154.96,154.87,21.04]
[1729020066463,3.2279,154.93,154.87,21.04]
[1729020067158,3.2279,154.93,154.9,3.2282]
[1729020067358,1.3397,154.99,154.91,21.04]
[1729020067558,1.3397,154.99,154.92,15.52]
[1729020067862,3.2274,154.95,154.92,15.52]
[1729020068070,1.4077,154.98,154.92,15.52]
[1729020068254,1.4077,154.98,154.92,18.7477]
[1729020068660,3.2272,154.96,154.92,18.7477]
[1729020069868,3.2272,154.96,154.93,3.2276]
[1729020071164,4.6345,154.98,154.95,3.2273]
[1729020071357,4.6345,154.98,154.94,15.52]
[1729020071562,3.2268,154.98,154.94,15.52]
[1729020071972,5.52,155.0,154.94,15.52]
[1729020072470,3.2266,154.99,154.96,3.227]
[1729020072768,5.52,155.0,154.94,15.52]
[1729020073373,5.52,155.0,154.92,15.52]
[1729020073773,21.04,155.0,154.9,21.04]
[1729020074272,3.2274,154.95,154.92,3.2278]
[1729020075865,3.2277,154.93,154.91,3.2279]
[1729020076069,5.52,154.96,154.87,15.52]
[1729020076271,8.1989,154.96,154.87,15.52]
[1729020076470,1.3971,154.95,154.87,15.52]
[1729020076671,3.2281,154.92,154.89,3.2284]
[1729020077178,1.3971,154.95,154.87,15.52]
[1729020077373,3.2283,154.91,154.88,3.2287]
[1729020078276,5.52,154.91,154.75,2.99698468]
[1729020078585,104.0,154.9,154.8,15.52]
[1729020078875,106.6789,154.9,154.82,15.52]
[1729020079079,3.2293,154.86,154.82,18.75]
[1729020081475,3.2296,154.85,154.82,15.52]
[1729020082380,3.2298,154.83,154.79,3.2305]
[1729020082683,5.52,154.87,154.78,15.52]
[1729020082878,3.2299,154.83,154.78,15.52]
[1729020083076,3.2299,154.83,154.78,18.7506]
[1729020083272,3.2299,154.83,154.78,15.52]
[1729020083682,3.2299,154.83,154.79,3.2304]
[1729020084576,3.2296,154.84,154.8,18.7504]
[1729020088985,3.2298,154.83,154.8,18.7504]